bitfinex-derivatives/quotes_ETHF0:USTF0_20260316
["timestamp","ask_amount","ask_price","bid_price","bid_amount"]
[1773632506186,13.04960083,2240.0,2238.7,0.00356865]
[1773632507686,13.04960083,2239.8,2238.7,0.00356865]
[1773632507883,13.04960083,2239.6,2238.7,0.00356865]
[1773632508090,13.04960083,2239.6,2238.7,13.36424906]
[1773632508685,13.04960083,2239.6,2238.7,0.00356865]
[1773632508892,13.04960083,2239.6,2238.8,0.51526022]
[1773632509092,13.04960083,2239.6,2238.6,13.58399041]
[1773632509289,13.04960083,2239.6,2238.1,13.27486967]
[1773632509595,13.04960083,2239.6,2238.5,13.27486967]
[1773632509795,13.04960083,2239.6,2238.7,13.27486967]
[1773632509991,13.04960083,2239.6,2238.6,13.49818967]
[1773632510196,13.04960083,2239.6,2238.8,13.25269021]
[1773632510492,53.84960083,2239.9,2238.8,13.25269021]
[1773632510996,13.04960083,2239.8,2238.8,13.25269021]
[1773632511198,40.8,2239.9,2239.1,13.5288178]
[1773632511492,13.04960083,2240.1,2239.2,13.3516299]
[1773632511888,13.04960083,2240.1,2239.3,13.5748799]
[1773632512087,53.84960083,2240.1,2239.3,13.5748799]
[1773632512493,12.80271465,2240.4,2239.3,13.5748799]
[1773632514297,12.80271465,2240.4,2238.7,0.00442894]
[1773632514298,12.80271465,2240.4,2239.2,13.07223051]
[1773632514498,12.80271465,2240.4,2239.2,13.29548051]
[1773632514700,12.56217191,2240.3,2239.2,13.29548051]
[1773632514896,12.56217191,2240.3,2239.2,0.22325]
[1773632515101,12.56217191,2240.3,2239.2,12.24090048]
[1773632515304,17.82405281,2240.2,2239.3,18.21065048]
[1773632515508,12.56217191,2240.2,2239.4,12.01765048]
[1773632516411,12.56217191,2240.2,2239.4,18.21265048]
[1773632516701,12.56217191,2240.2,2239.2,0.22325]
[1773632517008,12.56217191,2240.2,2238.9,18.21465048]
[1773632517206,12.56217191,2240.0,2239.0,12.24093048]
[1773632518303,12.56217191,2240.0,2239.0,0.22328]
[1773632519209,12.56217191,2239.8,2239.0,0.22328]
[1773632519409,12.56217191,2239.8,2238.7,0.00442894]
[1773632520209,12.56217191,2239.8,2238.8,6.204]
[1773632520407,12.56217191,2239.8,2238.9,0.22329]
[1773632520908,12.56217191,2239.8,2238.7,0.00442894]
[1773632521109,12.56217191,2239.6,2238.7,0.00442894]
[1773632521409,12.56217191,2239.4,2237.7,0.2234]
[1773632521614,0.22322,2239.6,2237.7,0.2234]
[1773632521615,12.56217191,2239.2,2237.7,0.2234]
[1773632521912,12.56217191,2239.2,2237.8,6.207]
[1773632522118,12.56217191,2239.0,2237.1,12.02236466]
[1773632522405,12.56217191,2238.8,2237.1,12.02785015]
[1773632522717,12.56217191,2238.8,2237.1,0.00548549]
[1773632522718,17.01617191,2238.6,2237.1,0.00548549]
[1773632523008,12.56217191,2238.2,2236.5,12.19444984]
[1773632523204,12.56217191,2238.0,2236.5,12.19444984]
[1773632523405,12.56217191,2237.8,2236.5,12.19444984]
[1773632523806,12.56217191,2237.8,2236.5,12.19780467]
[1773632524813,12.56217191,2237.6,2236.5,0.22687483]
[1773632525011,12.56217191,2237.6,2236.6,12.01765048]
[1773632525208,12.56217191,2237.6,2236.6,18.23165048]
[1773632525402,12.56217191,2237.6,2236.6,12.01765048]
[1773632525609,12.56217191,2237.6,2236.7,6.215]
[1773632526008,12.56217191,2237.6,2236.6,12.01765048]
[1773632526205,12.56217191,2237.6,2236.7,0.2235]
[1773632526407,12.56217191,2237.6,2236.7,12.24115048]
[1773632526609,40.8,2237.7,2236.7,12.24115048]
[1773632526806,12.56217191,2238.2,2237.3,12.24109048]
[1773632527002,12.56217191,2238.2,2237.4,12.01765048]
[1773632527314,40.8,2238.1,2237.4,12.01765048]
[1773632527809,12.56217191,2238.7,2237.4,12.01765048]
[1773632528006,12.56217191,2238.7,2237.6,12.01765048]
[1773632528210,40.8,2238.6,2237.8,12.01765048]
[1773632528406,12.56217191,2238.7,2237.8,12.01765048]
[1773632528813,53.36217191,2238.7,2237.8,12.01765048]
[1773632529410,0.00578451,2238.8,2237.9,12.24104048]
[1773632529610,12.56217191,2239.3,2238.3,12.24100048]
[1773632530010,12.56217191,2239.3,2238.3,0.22335]
[1773632530209,12.56217191,2239.3,2238.1,6.226]
[1773632530410,12.56217191,2239.3,2237.7,6.4504]
[1773632530606,12.7897899,2239.3,2237.7,0.2288276]
[1773632530813,12.56217191,2239.1,2237.8,6.227]
[1773632531111,12.56217191,2239.1,2237.7,0.0054276]
[1773632531316,12.56217191,2238.9,2237.1,12.24111048]
[1773632531622,12.56217191,2238.7,2237.3,12.24109048]
[1773632531815,12.56217191,2238.7,2237.4,18.24765048]
[1773632532015,12.56217191,2238.7,2237.3,0.22344]
[1773632532412,12.56217191,2238.7,2237.3,0.22814659]
[1773632532613,12.56217191,2238.7,2237.3,0.00470659]
[1773632533018,12.56217191,2238.5,2237.3,0.00470659]
[1773632533216,12.56217191,2238.5,2237.4,12.01765048]
[1773632533923,12.56217191,2238.9,2237.4,12.01765048]
[1773632534219,12.56217191,2238.9,2237.9,0.22338]
[1773632534413,12.56217191,2238.9,2237.9,6.45938]
[1773632534817,12.56217191,2238.9,2238.1,0.22337]
[1773632535018,10.09474191,2238.9,2238.1,12.24102048]
[1773632535320,12.56217191,2239.2,2238.1,12.24102048]
[1773632536018,12.56217191,2239.2,2238.1,12.01765048]
[1773632536213,0.00366423,2239.3,2238.5,12.01765048]
[1773632536414,12.56583614,2239.3,2238.6,18.48097048]
[1773632536615,12.56217191,2239.6,2238.7,18.25765048]
[1773632536814,53.36217191,2239.6,2238.7,18.25765048]
[1773632537215,53.36217191,2239.6,2238.7,12.01765048]
[1773632537419,53.36217191,2239.6,2238.6,0.22332]
[1773632537420,12.56217191,2239.9,2238.9,12.01765048]
[1773632537615,12.56608938,2239.9,2238.9,12.02295678]
[1773632539023,12.56608938,2239.9,2239.0,6.246]
[1773632539223,12.56608938,2239.9,2238.9,6.2523063]
[1773632539718,12.56608938,2239.9,2239.0,12.01765048]
[1773632540025,0.00391747,2239.9,2239.2,12.01765048]
[1773632540611,12.56608938,2239.9,2239.2,12.01765048]
[1773632541324,12.56217191,2240.3,2239.2,12.24090048]
[1773632542325,12.56563791,2240.3,2239.2,12.24090048]
[1773632542622,12.56563791,2240.3,2239.2,18.49490048]
[1773632543216,12.56563791,2240.3,2238.9,11.7742116]
[1773632543415,12.56563791,2240.3,2239.1,11.7689053]
[1773632543813,12.56563791,2240.3,2239.3,11.7689053]
[1773632544218,12.56563791,2240.3,2239.0,11.9921853]
[1773632544422,12.56563791,2240.3,2239.1,6.259]
[1773632544624,12.56563791,2240.3,2239.2,0.22326]
[1773632544817,11.46440908,2240.3,2239.2,11.9921653]
[1773632545014,11.46440908,2240.3,2239.3,18.0299053]
[1773632545521,11.46440908,2240.3,2239.4,11.7689053]
[1773632545822,0.003466,2240.3,2239.4,11.7689053]
[1773632546023,0.003466,2240.3,2239.6,11.7689053]
[1773632546717,11.46440908,2240.3,2239.0,11.7689053]
[1773632546923,11.46440908,2240.3,2238.9,0.0053063]
[1773632546924,11.46440908,2240.3,2239.3,11.7689053]
[1773632547325,11.46440908,2240.3,2239.2,6.266]
[1773632547724,11.46440908,2240.3,2239.0,11.7689053]
[1773632547926,11.46440908,2240.3,2239.0,11.9921853]
[1773632548419,11.46440908,2240.3,2239.0,18.2611853]
[1773632548625,11.46440908,2240.3,2238.9,0.0053063]
[1773632549622,11.46094308,2240.1,2238.9,0.0053063]
[1773632550030,11.46094308,2239.9,2238.9,0.0053063]
[1773632550827,11.46094308,2239.9,2237.1,7.815]
[1773632550828,11.46094308,2239.9,2238.2,11.7689053]
[1773632551124,11.46094308,2239.7,2238.2,11.9922553]
[1773632551825,11.46094308,2239.7,2238.2,11.99719007]
[1773632552026,11.46094308,2239.7,2238.4,11.9922453]
[1773632552534,11.46094308,2239.7,2238.6,11.7689053]
[1773632553433,11.46094308,2239.7,2238.7,6.279]
[1773632553628,11.46094308,2239.7,2238.6,11.7689053]
[1773632553828,11.46094308,2239.7,2238.7,6.28]
[1773632554335,11.46094308,2239.9,2238.9,11.9921953]
[1773632555225,11.46094308,2239.9,2238.9,0.22329]
[1773632555727,11.46094308,2239.9,2238.8,11.7689053]
[1773632555924,11.46094308,2239.9,2238.8,18.0519053]
[1773632556134,11.46094308,2239.9,2238.4,11.7689053]
[1773632556432,11.46094308,2239.9,2238.6,11.7689053]
[1773632556633,11.46094308,2239.9,2238.7,6.284]
[1773632557079,11.46094308,2239.9,2238.6,11.7689053]
[1773632557235,11.46094308,2239.9,2238.3,18.2772453]
[1773632557430,11.46094308,2239.7,2238.3,18.2782453]
[1773632557929,11.46094308,2239.7,2238.3,11.9922453]
[1773632559428,11.46094308,2239.7,2238.3,0.22334]
[1773632559629,11.46094308,2239.5,2238.2,0.00493477]
[1773632559928,11.46094308,2239.5,2237.7,11.9923053]
[1773632559929,13.79410373,2239.3,2237.7,11.9923053]
[1773632560129,11.46094308,2239.1,2237.7,11.9923053]
[1773632560935,11.46094308,2239.1,2237.7,0.003549]
[1773632561129,11.46094308,2238.9,2237.7,0.003549]
[1773632561330,11.46094308,2238.3,2237.1,0.22346]
[1773632561827,11.46094308,2238.1,2237.1,0.22346]
[1773632562333,11.46656728,2238.1,2237.1,0.00374388]
[1773632562931,11.46656728,2238.1,2236.6,11.7689053]
[1773632563137,11.46656728,2238.1,2236.5,0.22352]
[1773632563332,11.46094308,2237.9,2236.3,11.7689053]
[1773632563635,11.46094308,2237.7,2236.3,18.0649053]
[1773632563931,3.93228578,2238.1,2236.3,18.0649053]
[1773632563932,11.46094308,2238.0,2236.9,0.22348]
[1773632564133,11.46094308,2238.0,2236.9,11.9923853]
[1773632564530,11.46094308,2238.0,2236.9,0.22348]
[1773632565031,11.46094308,2238.0,2236.9,11.9923853]
[1773632565540,11.46094308,2238.0,2236.9,11.7689053]
[1773632565837,11.46094308,2238.0,2236.7,18.0679053]
[1773632566039,11.46094308,2238.0,2236.8,0.22349]
[1773632566936,11.46656728,2238.1,2237.0,0.22347]
[1773632567140,11.46656728,2238.1,2236.4,11.9924353]
[1773632567836,11.68903293,2238.1,2236.5,18.0709053]
[1773632568332,11.68903293,2238.1,2236.5,11.7689053]
[1773632569141,11.68903293,2238.1,2236.7,11.7689053]
[1773632569638,11.46094308,2237.9,2236.4,11.7689053]
[1773632569834,11.46094308,2237.5,2236.1,11.7689053]
[1773632570834,11.46094308,2237.5,2236.1,11.77342249]
[1773632571236,11.46094308,2237.5,2236.2,11.7689053]
[1773632572741,10.94320172,2237.3,2236.2,11.7689053]
[1773632573336,10.94320172,2237.3,2236.1,6.31151719]
[1773632573538,10.94320172,2237.3,2236.1,0.00451719]
[1773632574234,40.8,2237.4,2235.6,10.72581937]
[1773632574235,10.94320172,2237.0,2235.6,10.72581937]
[1773632574438,10.94320172,2237.0,2235.7,10.72581937]
[1773632574745,10.94320172,2237.0,2235.9,10.72581937]
[1773632574939,10.94320172,2237.0,2236.0,6.312]
[1773632575242,10.94320172,2237.0,2236.0,6.31651662]
[1773632575443,10.94320172,2237.0,2236.1,10.72581937]
[1773632575640,10.94320172,2237.0,2236.0,0.00451662]
[1773632576040,10.94320172,2237.0,2236.0,10.73033599]
[1773632577142,10.94320172,2237.0,2236.1,10.72581937]
[1773632577342,0.22852124,2237.3,2236.1,10.72581937]
[1773632577542,11.06661421,2237.2,2236.1,10.72581937]
[1773632577944,11.06661421,2237.2,2236.0,0.00451662]
[1773632578547,11.06661421,2237.2,2236.0,10.73033599]
[1773632579051,11.06661421,2237.2,2236.0,0.00451662]
[1773632580550,11.06661421,2237.2,2236.0,10.73033599]
[1773632581345,11.06661421,2237.2,2236.0,0.00451662]
[1773632581646,11.06661421,2237.0,2236.0,0.00451662]
[1773632581849,11.06661421,2236.9,2235.6,10.72581937]
[1773632582045,11.06661421,2236.9,2233.8,15.97451065]
[1773632582046,11.06661421,2236.9,2235.4,6.323]
[1773632582242,11.06661421,2236.9,2235.3,10.72581937]
[1773632582446,11.06661421,2236.9,2235.4,10.94944937]
[1773632582647,40.8,2236.8,2235.4,10.94944937]
[1773632582847,40.8,2236.8,2235.4,10.9533501]
[1773632583048,11.06661421,2237.2,2235.4,10.6500501]
[1773632583449,11.06661421,2237.2,2236.1,10.72581937]
[1773632583650,40.8,2237.1,2236.3,10.72581937]
[1773632583853,51.86661421,2237.1,2236.3,10.72581937]
[1773632584048,11.28718591,2237.6,2236.5,10.72581937]
[1773632584552,40.8,2237.5,2236.5,10.72581937]
[1773632584752,51.86661421,2237.5,2236.5,10.72581937]
[1773632584953,11.06661421,2237.4,2236.6,6.325]
[1773632585154,11.06661421,2237.4,2236.5,10.72581937]
[1773632586150,11.06661421,2237.4,2235.8,10.72581937]
[1773632586353,11.06661421,2237.0,2235.6,10.72581937]
[1773632586656,11.06661421,2237.0,2235.4,6.32990073]
[1773632587051,11.06661421,2237.0,2235.4,0.00390073]
[1773632587261,11.06661421,2236.8,2235.4,10.7297201]
[1773632587556,11.06661421,2236.6,2235.4,0.00390073]
[1773632587752,11.06661421,2236.4,2235.4,0.00390073]
[1773632587953,11.07049934,2236.4,2235.4,0.00390073]
[1773632588356,11.07049934,2236.4,2235.5,10.94943937]
[1773632588554,11.07049934,2236.4,2235.5,0.22362]
[1773632589059,0.00388513,2236.4,2235.5,10.94943937]
[1773632589463,11.07049934,2236.4,2235.5,10.94943937]
[1773632589659,11.07049934,2236.4,2235.4,0.00390073]
[1773632589954,40.8,2236.3,2235.4,0.00390073]
[1773632590160,11.06661421,2236.2,2235.4,0.00390073]
[1773632591366,11.06661421,2236.2,2235.2,10.72581937]
[1773632591567,11.06661421,2236.2,2234.9,10.72581937]
[1773632591860,11.06661421,2236.2,2235.0,10.72581937]
[1773632592359,11.06661421,2236.2,2235.0,0.00371922]
[1773632592860,11.06661421,2236.0,2234.8,0.22369]
[1773632593459,11.06661421,2236.0,2234.8,10.94950937]
[1773632593853,11.06661421,2236.0,2234.8,10.95401678]
[1773632594259,11.06661421,2236.0,2234.8,0.00450741]
[1773632594558,11.06661421,2235.8,2234.8,0.00450741]
[1773632595258,11.06661421,2235.8,2234.8,10.73032678]
[1773632596661,11.06661421,2235.8,2235.0,10.72581937]
[1773632596962,11.06661421,2236.2,2235.3,10.94945937]
[1773632597157,11.06661421,2236.2,2235.3,17.28545937]
[1773632597358,11.06661421,2236.2,2235.4,10.72581937]
[1773632597664,11.06661421,2236.5,2235.7,10.94941937]
[1773632597861,11.06661421,2236.5,2235.4,10.72581937]
[1773632598060,11.06661421,2236.3,2235.4,10.72581937]
[1773632598667,11.07136977,2236.3,2235.3,10.72581937]
[1773632599159,11.07136977,2236.3,2235.1,10.94947937]
[1773632602865,11.07136977,2236.3,2235.3,10.23705525]
[1773632603864,0.00475556,2236.3,2235.5,10.23705525]
[1773632604065,0.00475556,2236.3,2235.7,10.23705525]
[1773632605471,0.22849506,2236.8,2235.7,10.23705525]
[1773632605767,40.8,2236.7,2235.9,10.23705525]
[1773632605971,10.94599239,2236.6,2235.1,10.23705525]
[1773632606267,10.94599239,2236.3,2234.8,10.24156266]
[1773632606569,3.69814361,2236.4,2234.8,0.00450741]
[1773632606570,10.94599239,2236.1,2234.8,0.00450741]
[1773632606771,10.94599239,2235.9,2234.8,0.00450741]
[1773632607062,10.94599239,2235.7,2234.5,10.23705525]
[1773632607262,10.94599239,2235.5,2234.3,16.58605525]
[1773632607859,10.94599239,2235.5,2234.4,10.23705525]
[1773632608060,10.94599239,2235.5,2234.4,10.24019336]
[1773632608769,10.94599239,2235.5,2234.5,10.23705525]
[1773632609563,10.94599239,2235.5,2234.6,6.353]
[1773632609764,10.94599239,2235.5,2234.5,10.23705525]
[1773632610470,10.94599239,2235.5,2234.4,0.00313811]
[1773632611272,40.8,2235.4,2234.4,0.00313811]
[1773632611472,10.94599239,2235.3,2234.4,0.00313811]
[1773632611673,10.94599239,2235.3,2234.4,10.16347641]
[1773632612269,10.94599239,2235.3,2234.4,10.14877641]
[1773632612774,10.94599239,2235.3,2234.5,16.47456477]
[1773632612972,10.94599239,2235.3,2234.5,16.47556477]
[1773632613168,10.94599239,2235.3,2234.2,0.22375]
[1773632613369,10.94599239,2235.3,2234.3,10.08270506]
[1773632613570,10.94599239,2235.3,2234.4,6.358]
[1773632613771,10.94599239,2236.1,2234.5,10.30642506]
[1773632613972,10.94599239,2236.1,2235.3,10.08270506]
[1773632614172,10.94599239,2236.1,2235.2,0.22365]
[1773632614472,10.94599239,2235.9,2235.2,0.22365]
[1773632614672,40.8,2236.0,2235.2,10.22893516]
[1773632615067,10.94599239,2235.9,2235.2,10.22893516]
[1773632615271,10.94599239,2235.9,2235.2,16.58993516]
[1773632616779,10.94599239,2235.9,2235.1,6.362]
[1773632616979,10.94599239,2235.9,2234.9,6.363]
[1773632617374,10.94599239,2235.9,2234.6,0.22371]
[1773632617574,40.8,2236.0,2234.6,0.22371]
[1773632617575,10.94599239,2235.7,2234.7,10.09006882]
[1773632617776,10.94599239,2235.7,2234.6,6.58771]
[1773632617972,10.94599239,2235.7,2234.6,0.22371]
[1773632618176,10.94599239,2235.7,2234.6,6.58771]
[1773632618674,10.94599239,2235.7,2234.6,16.65635392]
[1773632618875,10.94599239,2235.7,2234.7,10.06864392]
[1773632619580,10.94599239,2235.7,2234.7,6.367]
[1773632619880,10.94599239,2235.7,2234.8,10.03599244]
[1773632622981,10.94599239,2235.7,2234.7,6.367]
[1773632623183,10.94599239,2235.7,2234.7,16.2692898]
[1773632623384,10.94599239,2235.7,2234.7,6.367]
[1773632624082,10.94599239,2235.7,2234.8,9.86849969]
[1773632624278,10.94599239,2235.9,2234.9,10.09217969]
[1773632624979,10.94599239,2235.9,2234.7,9.86847819]
[1773632625183,10.94599239,2235.9,2234.7,6.375]
[1773632625382,10.94599239,2235.9,2234.6,6.376]
[1773632625882,10.94599239,2235.9,2234.9,9.83482913]
[1773632626083,10.94599239,2235.9,2235.0,6.377]
[1773632626480,10.94599239,2235.9,2234.9,16.21182913]
[1773632626681,10.94599239,2235.9,2234.8,0.22369]
[1773632627380,10.94599239,2235.9,2234.7,9.74579801]
[1773632628183,10.94599239,2235.9,2234.7,16.12479801]
[1773632628785,10.94599239,2235.9,2234.7,16.12579801]
[1773632629082,10.94599239,2235.7,2234.7,16.12579801]
[1773632629283,10.94599239,2235.7,2234.7,16.12679801]
[1773632629579,5.56850016,2236.2,2234.7,16.12679801]
[1773632629580,10.94599239,2235.9,2234.8,9.57444901]
[1773632629784,10.94599239,2235.9,2234.9,6.382]
[1773632629985,10.94599239,2235.9,2235.2,9.57444901]
[1773632630184,10.94599239,2236.0,2235.2,9.57444901]
[1773632632791,10.94599239,2236.0,2235.4,9.35140879]
[1773632633390,40.8,2236.1,2235.4,9.35140879]
[1773632633591,50.5945591,2236.1,2235.4,9.35140879]
[1773632633789,40.8,2236.1,2235.5,9.4747623]
[1773632634193,9.7945591,2236.3,2235.5,9.4747623]
[1773632634586,40.8,2236.2,2235.5,9.4747623]
[1773632635295,50.44933703,2236.2,2235.5,9.4747623]
[1773632635696,50.44933703,2236.2,2235.6,9.57266323]
[1773632635898,40.8,2236.2,2235.6,9.57266323]
[1773632636194,9.64933703,2236.4,2235.6,9.57266323]
[1773632636696,50.44933703,2236.3,2235.6,15.96566323]
[1773632636896,50.44933703,2236.3,2235.6,9.57266323]
[1773632637194,50.44933703,2236.3,2235.7,6.394]
[1773632637793,9.64933703,2236.2,2235.7,6.395]
[1773632638393,14.83414361,2237.1,2235.7,6.395]
[1773632638394,3.69814361,2237.1,2235.9,10.55493517]
[1773632638698,9.64933703,2237.2,2236.0,10.55493517]
[1773632639090,5.41712551,2237.1,2236.1,6.398]
[1773632639293,9.64933703,2237.0,2236.1,6.398]
[1773632639492,9.6531576,2237.0,2236.1,6.40368275]
[1773632639689,9.6531576,2237.0,2236.1,16.93362729]
[1773632639894,9.6531576,2237.0,2236.1,16.95961792]
[1773632640494,9.6531576,2237.0,2236.2,10.55493517]
[1773632640698,9.6531576,2237.0,2236.1,0.00568275]
[1773632641293,9.64933703,2236.8,2235.5,10.55493517]
[1773632641491,0.00382057,2237.0,2235.7,10.55493517]
[1773632641691,9.6531576,2237.0,2235.9,10.55493517]
[1773632642198,9.6531576,2237.0,2235.9,10.55902147]
[1773632642801,0.00382057,2237.0,2236.3,10.55493517]
[1773632643401,10.59847491,2238.2,2236.4,0.22353]
[1773632643599,10.59847491,2238.2,2236.2,6.406]
[1773632643600,10.59847491,2238.2,2236.3,0.22354]
[1773632643796,10.59847491,2238.2,2236.9,0.22348]
[1773632643999,10.59847491,2238.2,2237.0,6.407]
[1773632644201,10.59847491,2238.2,2237.1,0.90427834]
[1773632644500,0.56134102,2239.0,2237.5,0.94689523]
[1773632644501,10.57716646,2239.0,2237.5,0.94689523]
[1773632644701,10.57716646,2238.8,2237.6,0.22342]
[1773632644900,10.57716646,2238.8,2237.7,0.94689523]
[1773632645100,10.57716646,2238.8,2237.8,7.35589523]
[1773632645300,10.57716646,2238.8,2237.9,0.90128978]
[1773632645502,10.50374452,2238.8,2237.9,0.90481169]
[1773632646200,0.00399899,2238.8,2237.9,0.90481169]
[1773632647404,10.74058434,2238.8,2237.9,0.90481169]
[1773632648612,10.74058434,2238.8,2237.9,0.00352191]
[1773632651705,10.74058434,2238.8,2237.3,0.50469406]
[1773632652609,10.74058434,2238.8,2237.5,0.49547525]
[1773632652802,0.00399899,2238.8,2237.7,0.49547525]
[1773632653110,10.67096861,2239.0,2237.9,0.49147626]
[1773632653610,10.67096861,2239.0,2238.1,0.50938286]
[1773632653808,10.67096861,2239.0,2237.6,0.50938286]
[1773632654015,10.67577891,2239.0,2237.8,0.50938286]
[1773632655107,51.47577891,2239.0,2237.8,0.50938286]
[1773632655314,10.51165516,2238.9,2237.8,0.50938286]
[1773632655610,10.51165516,2238.9,2237.6,0.69539376]
[1773632656311,10.51165516,2238.9,2237.5,0.00450611]
[1773632658215,10.62782825,2238.7,2237.5,0.00450611]
[1773632658513,0.22231909,2238.9,2237.5,0.00450611]
[1773632658514,10.62930972,2238.5,2237.5,0.00450611]
[1773632659108,10.62930972,2238.3,2236.8,0.45660904]
[1773632659309,10.62930972,2238.1,2236.5,0.4362869]
[1773632660013,10.62930972,2238.1,2236.5,0.44075641]
[1773632660219,10.62930972,2238.1,2236.7,0.41766562]
[1773632660517,10.62930972,2238.1,2236.9,0.41798553]
[1773632660710,10.62847749,2237.9,2236.9,0.41798553]
[1773632661413,10.62847749,2237.9,2236.8,0.22349]
[1773632661613,10.62847749,2237.9,2236.6,0.46753016]
[1773632662716,10.62847749,2237.9,2236.8,0.25434256]
[1773632663415,10.62847749,2237.9,2237.0,0.32553501]
[1773632664818,10.62847749,2237.9,2236.9,0.22348]
[1773632665216,10.62847749,2237.9,2236.5,0.00446951]
[1773632665418,10.62847749,2237.9,2236.5,0.41237262]
[1773632665818,10.62847749,2237.9,2236.6,0.63141311]
[1773632667322,10.62847749,2237.9,2236.7,0.36094988]
[1773632669623,10.62847749,2237.9,2236.6,0.22351]
[1773632669828,10.62847749,2237.9,2236.6,0.49711985]
[1773632670030,10.50191655,2237.2,2235.4,0.49711985]
[1773632670432,10.50233334,2237.0,2235.4,0.49711985]
[1773632670627,10.50233334,2237.0,2235.0,2.33692226]
[1773632670628,10.74053739,2238.2,2235.9,5.50015]
[1773632670831,10.74053739,2238.2,2236.7,0.2235]
[1773632671029,10.74539141,2238.2,2236.7,0.22686122]
[1773632671326,10.74539141,2238.2,2236.7,0.00336122]
[1773632673429,10.74539141,2238.2,2236.7,0.15195087]
[1773632673831,10.74539141,2238.2,2236.8,0.14858965]
[1773632677234,10.74539141,2238.2,2236.7,0.00336122]
[1773632678535,10.74539141,2238.2,2236.4,0.22353]
[1773632678536,10.74539141,2238.2,2236.4,0.20049122]
[1773632679637,10.74539141,2238.2,2236.4,0.20613136]
[1773632681343,10.84961556,2238.0,2236.5,0.12274584]
[1773632682331,10.84961556,2238.0,2236.4,0.30715368]
[1773632682530,10.84961556,2238.0,2236.5,0.10102232]
[1773632683540,10.84961556,2238.0,2236.4,0.20613136]
[1773632683541,10.84961556,2238.0,2236.7,0.15708688]
[1773632684341,10.84961556,2238.0,2236.9,0.13569666]
[1773632684738,10.84961556,2238.0,2237.1,0.16529199]
[1773632685637,10.58951555,2238.2,2237.4,0.22343]
[1773632685836,10.58951555,2238.2,2236.8,6.64004801]
[1773632685837,10.58951555,2238.2,2237.0,0.36147613]
[1773632686941,10.58951555,2238.2,2236.8,0.53175533]
[1773632687142,10.58951555,2238.2,2236.9,0.28705304]
[1773632688242,10.58951555,2238.2,2236.8,0.22349]
[1773632689740,10.58951555,2238.2,2236.8,0.59057559]
[1773632689943,10.58951555,2238.2,2236.9,0.36708559]
[1773632690144,10.58951555,2238.2,2237.0,0.56952065]
[1773632690947,10.58951555,2238.2,2237.0,0.22347]
[1773632694044,10.58951555,2238.2,2237.3,0.22344]
[1773632697550,8.30675555,2238.2,2237.5,2.22877573]
[1773632697748,10.30314614,2238.6,2237.5,2.22877573]
[1773632698649,10.30848992,2238.6,2237.5,2.22877573]
[1773632699747,0.00534378,2238.6,2237.5,2.00534573]
[1773632699946,10.380562,2238.7,2238.1,2.004463]
[1773632700250,10.380562,2238.7,2238.0,0.22337]
[1773632700447,40.8,2239.6,2238.0,2.16040462]
[1773632700649,10.30314614,2239.5,2238.0,2.16040462]
[1773632700853,10.30777509,2239.5,2238.0,4.32426744]
[1773632702255,10.30777509,2239.5,2238.3,4.38664395]
[1773632703056,10.30314614,2240.3,2238.7,4.20916251]
[1773632703358,10.30314614,2240.3,2239.4,4.17687955]
[1773632703954,10.30314614,2240.3,2239.3,0.22324]
[1773632704150,10.30872847,2240.3,2239.1,4.18900921]
[1773632704355,10.30314614,2241.1,2239.6,0.22322]
[1773632704557,10.30314614,2241.1,2239.9,4.17003733]
[1773632704750,10.30314614,2241.1,2240.1,4.17003733]
[1773632705354,10.30671743,2241.1,2240.1,4.17529851]
[1773632706361,10.30671743,2241.1,2240.3,4.11284931]
[1773632706556,0.00357129,2241.1,2240.5,4.11284931]
[1773632707651,10.30671743,2241.1,2240.5,4.11284931]
[1773632707851,8.03818614,2242.1,2240.8,6.3015263]
[1773632708054,10.30314614,2242.8,2241.4,6.5245563]
[1773632708251,10.30314614,2242.8,2241.4,12.7015563]
[1773632708452,10.30314614,2243.3,2241.9,10.33973143]
[1773632708655,10.30314614,2243.3,2241.4,10.33973143]
[1773632708962,10.30693469,2243.3,2241.4,10.3438698]
[1773632709561,2.33692226,2243.1,2241.4,10.3438698]
[1773632709764,10.30314614,2243.0,2241.4,10.3438698]
[1773632711471,10.30314614,2243.0,2241.4,0.00413837]
[1773632712874,10.52602614,2243.0,2241.4,0.00413837]
[1773632713272,10.30314614,2243.0,2241.4,10.3438698]
[1773632713572,10.30314614,2243.0,2241.9,10.33973143]
[1773632713774,10.30314614,2243.0,2241.8,0.223]
[1773632713970,10.30314614,2243.0,2241.8,10.56273143]
[1773632716571,10.30314614,2243.0,2241.5,10.33973143]
[1773632716777,10.30314614,2243.0,2241.4,0.00413837]
[1773632718577,10.30314614,2242.8,2241.4,0.00213837]
[1773632719272,10.30314614,2242.6,2241.4,0.00213837]
[1773632719477,10.30314614,2242.6,2240.5,0.22312]
[1773632719478,10.30314614,2242.4,2240.6,10.33973143]
[1773632719874,10.30314614,2242.4,2240.8,10.33973143]
[1773632720480,10.30314614,2242.4,2240.9,10.56282143]
[1773632722277,10.30314614,2242.4,2240.8,9.54559548]
[1773632722675,10.30314614,2242.4,2240.8,9.76868548]
[1773632722883,9.66788509,2242.2,2240.8,9.76868548]
[1773632725175,9.66788509,2242.2,2240.8,9.54559548]
[1773632725374,9.66788509,2242.0,2240.8,0.00392749]
[1773632725582,9.66788509,2242.0,2240.8,9.54559548]
[1773632726482,9.66788509,2242.0,2240.8,9.76868548]
[1773632728278,9.66788509,2242.0,2240.8,0.00392749]
[1773632728784,9.66788509,2241.9,2240.4,9.54166799]
[1773632729478,9.66788509,2241.9,2240.2,9.54166799]
[1773632729984,9.66788509,2241.9,2240.2,9.54515619]
[1773632730380,9.66788509,2241.9,2240.4,9.54166799]
[1773632730580,9.66788509,2241.9,2240.3,0.22315]
[1773632730881,9.66788509,2241.9,2240.3,9.76481799]
[1773632731480,9.66788509,2241.7,2240.2,9.54515619]
[1773632731681,9.66788509,2241.6,2240.2,9.54515619]
[1773632731883,9.66788509,2241.6,2240.2,0.0034882]
[1773632732280,9.66788509,2241.4,2240.2,0.0034882]
[1773632732583,9.66788509,2241.2,2240.2,0.0034882]
[1773632732778,9.66788509,2241.2,2239.6,9.76487799]
[1773632733788,9.66788509,2241.2,2239.6,9.76844464]
[1773632734684,9.66788509,2241.1,2239.6,9.76844464]
[1773632734884,9.66788509,2241.1,2239.6,0.00356665]
[1773632735388,9.66788509,2240.9,2239.6,0.00356665]
[1773632736188,9.66788509,2240.7,2239.6,0.00356665]
[1773632736683,9.66788509,2240.7,2238.9,0.22328]
[1773632736890,9.66788509,2240.7,2238.9,9.76494799]
[1773632737690,9.66788509,2240.7,2238.9,0.00404337]
[1773632737991,9.66788509,2240.5,2238.9,0.00404337]
[1773632738188,9.66788509,2240.3,2238.9,0.00404337]
[1773632738587,9.66788509,2240.1,2238.9,0.00404337]
[1773632738783,9.67315098,2240.1,2238.9,0.00404337]
[1773632739386,5.56850016,2241.0,2238.9,0.00404337]